bitfinex/quotes_BTCUSD_20250530
["timestamp","ask_amount","ask_price","bid_price","bid_amount"]
[1748613799985,0.001,105580.0,105570.0,0.1205948]
[1748613800205,0.01047068,105580.0,105570.0,0.1205948]
[1748613800427,0.02941267,105580.0,105560.0,0.016]
[1748613800647,0.03041249,105580.0,105560.0,0.10705395]
[1748613800866,0.02941249,105580.0,105560.0,0.10705395]
[1748613801094,0.001,105580.0,105560.0,0.10942198]
[1748613801324,0.56778246,105590.0,105570.0,0.0156]
[1748613801541,0.00947077,105580.0,105570.0,0.0156]
[1748613801775,0.35894377,105570.0,105560.0,0.10765395]
[1748613802003,0.35894413,105570.0,105560.0,0.09205395]
[1748613802236,0.34,105570.0,105560.0,0.09105395]
[1748613802717,0.34,105570.0,105560.0,0.13966286]
[1748613802935,0.34,105570.0,105560.0,0.1372948]
[1748613804113,0.34,105570.0,105560.0,0.1382948]
[1748613804332,0.34,105570.0,105560.0,0.1402948]
[1748613804565,0.34,105570.0,105560.0,0.1392948]
[1748613804797,0.37836967,105590.0,105570.0,0.01454085]
[1748613805016,0.37836967,105590.0,105570.0,0.1055948]
[1748613805257,0.5677822,105590.0,105570.0,0.1055948]
[1748613805485,0.00947068,105580.0,105570.0,0.1055948]
[1748613805706,0.37836949,105590.0,105570.0,0.1055948]
[1748613805931,0.56778306,105590.0,105570.0,0.1055948]
[1748613806160,0.00947077,105580.0,105570.0,0.1055948]
[1748613806377,0.00947068,105580.0,105570.0,0.1055948]
[1748613806631,0.22731388,105580.0,105560.0,0.0337]
[1748613806852,0.02841267,105580.0,105560.0,0.10715395]
[1748613807082,0.02841249,105580.0,105560.0,0.09105395]
[1748613807312,0.5583119,105590.0,105570.0,0.001]
[1748613807570,0.5583119,105590.0,105560.0,0.10705395]
[1748613807571,0.3594293,105590.0,105560.0,0.09342202]
[1748613807787,0.55831166,105590.0,105570.0,0.0151]
[1748613808010,0.34995862,105590.0,105570.0,0.1206948]
[1748613808237,0.35942876,105590.0,105570.0,0.1206948]
[1748613808678,0.34995862,105590.0,105570.0,0.1206948]
[1748613808904,0.35942867,105590.0,105570.0,0.1206948]
[1748613809172,0.34995862,105590.0,105570.0,0.1206948]
[1748613809370,0.36889872,105590.0,105570.0,0.1206948]
[1748613809586,0.37836913,105590.0,105570.0,0.1206948]
[1748613810035,0.00947086,105580.0,105570.0,0.1206948]
[1748613810254,0.00947086,105580.0,105570.0,0.1216948]
[1748613810500,0.01894163,105580.0,105570.0,0.1216948]
[1748613810727,0.3594293,105590.0,105570.0,0.1216948]
[1748613810949,0.34995862,105590.0,105570.0,0.1206948]
[1748613811184,0.00048875,105590.0,105580.0,1.30041808]
[1748613811559,0.01126332,105630.0,105610.0,0.0155]
[1748613811791,0.00014656,105630.0,105620.0,0.0161]
[1748613812024,0.00961276,105630.0,105620.0,0.0161]
[1748613812469,0.01907914,105630.0,105620.0,0.0161]
[1748613812713,0.00014656,105630.0,105620.0,0.0161]
[1748613813414,0.00014656,105630.0,105620.0,0.55414583]
[1748613813637,0.00014656,105630.0,105610.0,0.21667395]
[1748613813638,0.02840235,105620.0,105610.0,0.21667395]
[1748613813869,0.19895538,105630.0,105610.0,0.2308148]
[1748613813870,0.01907958,105630.0,105610.0,0.2308148]
[1748613814089,0.02854631,105630.0,105610.0,0.2308148]
[1748613814314,0.01907958,105630.0,105610.0,0.2308148]
[1748613814558,0.0285464,105630.0,105610.0,0.2308148]
[1748613814785,0.0285464,105630.0,105610.0,0.76886063]
[1748613815011,0.02854631,105630.0,105610.0,0.76886063]
[1748613815253,0.03801322,105630.0,105610.0,0.7781684]
[1748613815698,0.23682132,105630.0,105610.0,0.2308148]
[1748613815920,0.00946709,105620.0,105610.0,0.2308148]
[1748613816153,0.01907975,105630.0,105610.0,0.2328148]
[1748613816376,0.00946709,105620.0,105610.0,0.2328148]
[1748613816821,0.00946709,105620.0,105610.0,0.2348148]
[1748613817487,0.01907975,105630.0,105610.0,0.1075948]
[1748613817723,0.22735498,105630.0,105610.0,0.004]
[1748613817953,0.20829333,105620.0,105610.0,0.004]
[1748613818203,0.56369333,105620.0,105610.0,0.004]
[1748613818445,0.90217333,105620.0,105610.0,0.004]
[1748613818669,0.97792732,105620.0,105610.0,0.002]
[1748613819161,0.03787687,105600.0,105570.0,1.08840583]
[1748613819393,0.01893785,105600.0,105580.0,0.09105395]
[1748613819622,0.36840505,105610.0,105580.0,0.64439978]
[1748613819860,0.35893643,105610.0,105580.0,0.66039978]
[1748613820097,0.34,105610.0,105590.0,0.56908668]
[1748613820328,0.003,105620.0,105600.0,0.64559978]
[1748613820555,0.02193445,105620.0,105600.0,0.77087978]
[1748613820784,0.02193445,105620.0,105600.0,0.23283395]
[1748613820785,0.02840199,105620.0,105600.0,0.23283395]
[1748613821006,0.01893445,105620.0,105600.0,0.21683395]
[1748613821234,0.00961285,105630.0,105610.0,0.0155]
[1748613821457,0.22735299,105630.0,105610.0,0.0155]
[1748613821676,0.00946718,105620.0,105600.0,0.55521395]
[1748613822359,0.56735415,105630.0,105600.0,0.55521395]
[1748613822607,0.19883291,105620.0,105600.0,0.09105395]
[1748613822885,0.03787358,105610.0,105590.0,0.0154]
[1748613823110,0.03787358,105610.0,105580.0,0.12568]
[1748613823111,0.00946888,105600.0,105580.0,0.12568]
[1748613823356,0.01893803,105600.0,105580.0,0.10745395]
[1748613823585,0.01893794,105600.0,105580.0,0.21673395]
[1748613823809,0.02840709,105600.0,105580.0,0.21673395]
[1748613824038,0.02840709,105600.0,105580.0,0.54017395]
[1748613824267,0.01893794,105600.0,105580.0,0.54017395]
[1748613824507,0.00946888,105600.0,105580.0,0.54017395]
[1748613824951,0.34946835,105610.0,105580.0,0.54017395]
[1748613825182,0.55778104,105610.0,105580.0,0.54017395]
[1748613825443,0.01893812,105600.0,105580.0,0.10825395]
[1748613825712,0.5577835,105610.0,105580.0,0.10825395]
[1748613825950,0.01893983,105590.0,105580.0,0.004]
[1748613826208,0.5645526,105590.0,105580.0,0.004]
[1748613826763,0.00947175,105570.0,105550.0,0.0152]
[1748613826930,0.20838131,105580.0,105560.0,0.09105395]
[1748613826931,0.01894226,105580.0,105560.0,0.09105395]
[1748613827153,0.02841366,105580.0,105560.0,0.09105395]
[1748613827367,0.01894181,105580.0,105550.0,0.44840875]
[1748613827586,0.02841303,105580.0,105550.0,0.5394627]
[1748613828251,0.02841294,105580.0,105560.0,0.003]
[1748613828683,0.03788425,105580.0,105560.0,0.003]
[1748613829354,0.02841294,105580.0,105560.0,0.003]
[1748613829618,0.02841294,105580.0,105550.0,0.5394627]
[1748613829837,0.01894163,105580.0,105550.0,0.5394627]
[1748613830068,0.00947068,105580.0,105550.0,0.5444627]
[1748613830308,0.34,105590.0,105560.0,0.0158]
[1748613830538,0.00946897,105600.0,105570.0,0.03034085]
[1748613830759,0.00946996,105590.0,105570.0,0.10685395]
[1748613830976,0.02841033,105590.0,105560.0,0.0184]
[1748613831193,0.01894001,105590.0,105560.0,0.10945395]
[1748613831628,0.01894172,105580.0,105560.0,0.10945395]
[1748613831843,0.35894001,105590.0,105560.0,0.10645395]
[1748613832057,0.37788083,105590.0,105560.0,0.10645395]
[1748613832276,0.56729546,105590.0,105560.0,0.10645395]
[1748613832503,0.00947077,105580.0,105560.0,0.10645395]
[1748613832939,0.00947068,105580.0,105570.0,0.002]
[1748613833181,0.00947068,105580.0,105560.0,0.10945395]
[1748613833413,0.36841096,105590.0,105560.0,0.10945395]
[1748613833644,0.36841105,105590.0,105560.0,0.10945395]
[1748613833877,0.01894163,105580.0,105560.0,0.10945395]
[1748613834100,0.02841267,105580.0,105560.0,0.09405395]
[1748613834317,0.02841267,105580.0,105570.0,0.002]
[1748613834603,0.52941354,105590.0,105570.0,0.002]
[1748613834604,0.57352468,105590.0,105570.0,0.002]
[1748613834843,0.01894163,105580.0,105570.0,0.002]
[1748613835064,0.37464055,105590.0,105560.0,0.09105395]
[1748613835289,0.00947077,105580.0,105560.0,0.09405395]
[1748613835530,0.19891933,105570.0,105560.0,0.003]
[1748613835769,0.19891933,105570.0,105540.0,0.08091052]
[1748613835770,0.56735815,105560.0,105540.0,0.08091052]
[1748613836036,0.01894719,105550.0,105520.0,0.42466]
[1748613836296,0.01894719,105550.0,105530.0,0.09105395]
[1748613836297,0.00947337,105550.0,105530.0,0.09105395]
[1748613836514,0.01894692,105550.0,105530.0,0.09105395]
[1748613836735,0.02842065,105550.0,105530.0,0.09105395]
[1748613836980,0.54841285,105560.0,105540.0,0.002]
[1748613837232,0.35894557,105560.0,105530.0,0.09105395]
[1748613837459,0.00947355,105550.0,105530.0,0.09305395]
[1748613838141,0.01894737,105550.0,105530.0,0.09305395]
[1748613838394,0.00947355,105550.0,105530.0,0.09405395]
[1748613839094,0.35894557,105560.0,105530.0,0.12545395]
[1748613839323,0.34947265,105560.0,105530.0,0.12545395]
[1748613839546,0.35894548,105560.0,105530.0,0.12782266]
[1748613839782,0.35894548,105560.0,105530.0,0.12545395]
[1748613840011,0.36841858,105560.0,105530.0,0.12782266]
[1748613840251,0.34947265,105560.0,105530.0,0.12782266]
[1748613840485,0.00048844,105570.0,105560.0,0.01454085]
[1748613840718,0.00048844,105570.0,105560.0,0.1055948]
[1748613840937,0.00996011,105570.0,105560.0,0.1055948]
[1748613841613,0.01894512,105560.0,105550.0,0.12302085]
[1748613841837,0.01894512,105560.0,105530.0,0.0302]
[1748613841838,0.22735738,105560.0,105530.0,0.0302]
[1748613842119,0.01894701,105550.0,105540.0,0.2140748]
[1748613842359,0.00947337,105550.0,105540.0,0.2140748]
[1748613842583,0.02841903,105560.0,105540.0,0.2140748]
[1748613842811,0.00947337,105550.0,105540.0,0.2140748]
[1748613843033,0.02842074,105550.0,105540.0,0.2140748]
[1748613843250,0.02842074,105550.0,105540.0,0.10848]
[1748613843507,0.01894692,105550.0,105530.0,0.10848]
[1748613843755,0.02842065,105550.0,105530.0,0.19953395]
[1748613844002,0.00947436,105540.0,105530.0,0.2140748]
[1748613844235,0.00947427,105540.0,105530.0,0.2140748]
[1748613844467,0.01994809,105550.0,105530.0,0.1055948]
[1748613844701,0.01994809,105550.0,105530.0,0.2140748]
[1748613844952,0.00947436,105540.0,105530.0,0.2160748]
[1748613845194,0.01894773,105550.0,105530.0,0.2160748]
[1748613845422,0.35894584,105560.0,105530.0,0.2150748]
[1748613845658,0.00048844,105570.0,105540.0,0.4615748]
[1748613845941,0.35943186,105570.0,105540.0,0.99962063]
[1748613846175,0.00947256,105560.0,105540.0,0.4615748]
[1748613846406,0.35943186,105570.0,105540.0,0.4615748]
[1748613846650,0.02890388,105570.0,105540.0,0.4615748]
[1748613846878,0.00048844,105570.0,105550.0,0.0321]
[1748613847101,0.00996011,105570.0,105550.0,0.12552224]
[1748613847347,0.01943204,105570.0,105550.0,0.12552224]
[1748613847585,0.02890424,105570.0,105550.0,0.09105395]
[1748613847820,0.22782489,105570.0,105550.0,0.09105395]
[1748613848055,0.03837635,105570.0,105550.0,0.09105395]
[1748613848283,0.02990468,105570.0,105550.0,0.09105395]
[1748613848513,0.02143275,105570.0,105550.0,0.1055948]
[1748613848771,0.19893835,105560.0,105550.0,0.01454085]
[1748613849006,0.0284184,105560.0,105540.0,0.01454085]
[1748613849243,0.03789195,105560.0,105540.0,0.1055948]
[1748613849523,0.00148844,105570.0,105540.0,0.1055948]
[1748613849959,0.02990414,105570.0,105550.0,0.09105395]
[1748613849970,0.02043203,105570.0,105550.0,0.09105395]
[1748613850194,0.00947247,105560.0,105550.0,0.1055948]
[1748613850456,0.03837616,105570.0,105550.0,0.1055948]
[1748613850942,0.00947256,105560.0,105550.0,0.1055948]
[1748613851185,0.00947247,105560.0,105550.0,0.1055948]
[1748613851673,0.21788446,105560.0,105550.0,0.1055948]
[1748613851929,0.19897597,105540.0,105530.0,0.10848]
[1748613852337,0.19897597,105540.0,105530.0,0.19953395]
[1748613852338,0.01894881,105540.0,105530.0,0.19953395]
[1748613852340,0.20844775,105550.0,105530.0,0.19953395]
[1748613852957,0.21792193,105550.0,105530.0,0.19953395]
[1748613853370,0.20843106,105550.0,105530.0,0.21573395]
[1748613853813,0.21790506,105550.0,105530.0,0.21573395]
[1748613854025,0.02842137,105550.0,105530.0,0.23133395]
[1748613854264,0.00947274,105560.0,105540.0,0.1055948]
[1748613854493,0.34048844,105570.0,105540.0,0.13996358]
[1748613854747,0.00048844,105570.0,105550.0,0.032]
[1748613855005,0.02890424,105570.0,105550.0,0.12305395]
[1748613855266,0.02890415,105570.0,105550.0,0.12305395]
[1748613855499,0.00048844,105570.0,105560.0,0.24844299]
[1748613855713,0.00048844,105570.0,105560.0,0.78412063]
[1748613856464,0.00148844,105570.0,105560.0,0.2460748]
[1748613856911,0.00148844,105570.0,105560.0,0.5695548]
[1748613858158,0.00048844,105570.0,105560.0,0.5695548]
[1748613858372,0.00048844,105570.0,105560.0,0.5705548]
[1748613858827,0.00048844,105570.0,105560.0,0.5715548]
[1748613859053,0.00048844,105570.0,105560.0,1.63906633]
[1748613859280,0.00048844,105570.0,105560.0,1.45907391]
[1748613859498,0.00048844,105570.0,105560.0,5.09913737]
[1748613859715,0.00048844,105570.0,105560.0,4.88125228]
[1748613859936,0.00048844,105570.0,105560.0,5.08019117]
[1748613860162,0.00048844,105570.0,105560.0,3.35076427]
[1748613860389,0.00048844,105570.0,105560.0,3.34129126]
[1748613860610,0.00048844,105570.0,105560.0,3.14235228]
[1748613860830,0.00048844,105570.0,105560.0,3.33181798]
[1748613861048,0.00048844,105570.0,105560.0,3.34129117]
[1748613861302,0.00048844,105570.0,105560.0,6.84714857]
[1748613861531,0.07575399,105620.0,105610.0,0.01454085]
[1748613861770,0.10430252,105620.0,105610.0,0.01454085]
[1748613862201,0.07590053,105620.0,105610.0,0.01454085]
[1748613862448,0.00014654,105620.0,105610.0,0.14036191]
[1748613862672,0.00014654,105620.0,105610.0,0.67840721]
[1748613862891,0.00614654,105620.0,105610.0,0.1389948]
[1748613863115,0.00614654,105620.0,105610.0,0.1231948]
[1748613863563,0.00614654,105620.0,105610.0,0.14056155]
[1748613863816,0.01114654,105620.0,105610.0,0.14056155]
[1748613864063,0.00614654,105620.0,105610.0,0.14056155]
[1748613864293,0.00614654,105620.0,105610.0,0.1381948]
[1748613864515,0.00014654,105620.0,105610.0,0.1231948]
[1748613864737,0.00014654,105620.0,105610.0,0.1065948]
[1748613865467,0.00014654,105620.0,105610.0,1.73474103]
[1748613865701,0.00014654,105620.0,105610.0,5.31097188]
[1748613866646,0.00014654,105620.0,105610.0,5.25528288]
[1748613867108,0.00014654,105620.0,105610.0,5.29378226]
[1748613867327,0.04214068,105640.0,105630.0,3.84690875]
[1748613867547,0.04223337,105640.0,105630.0,5.5576327]
[1748613867771,0.04223337,105640.0,105630.0,5.56709916]
[1748613868264,0.04223337,105640.0,105630.0,6.53364437]
[1748613868779,0.04223337,105640.0,105630.0,6.53517254]
[1748613869316,0.04223337,105640.0,105630.0,7.07321837]
[1748613869783,0.04223337,105640.0,105630.0,7.07621837]
[1748613870010,0.04223337,105640.0,105630.0,7.10461437]
[1748613870528,0.07575399,105680.0,105670.0,0.55258668]
[1748613870761,0.28441817,105680.0,105670.0,0.1055948]
[1748613871003,0.28441817,105680.0,105670.0,0.09105395]
[1748613871004,0.07624319,105680.0,105670.0,0.09105395]
[1748613871235,0.0951669,105680.0,105670.0,0.09105395]
[1748613871480,0.30334197,105680.0,105670.0,0.09105395]
[1748613871736,0.09516735,105680.0,105670.0,0.09105395]
[1748613871973,0.30334268,105680.0,105670.0,0.09105395]
[1748613872211,0.31964321,105680.0,105670.0,0.09105395]
[1748613872450,0.09616726,105680.0,105670.0,0.09105395]
[1748613872673,0.28541782,105680.0,105670.0,0.09105395]
[1748613872915,0.29488016,105680.0,105670.0,0.09105395]
[1748613873145,0.08770509,105680.0,105670.0,0.09105395]
[1748613873612,0.42770509,105680.0,105670.0,0.09105395]
[1748613873856,0.3424892,105680.0,105670.0,0.09105395]
[1748613874312,0.35195092,105680.0,105670.0,0.09105395]
[1748613874756,0.3424892,105680.0,105670.0,0.09105395]
[1748613874981,0.36141282,105680.0,105670.0,0.09105395]
[1748613875226,0.35195092,105680.0,105670.0,0.09105395]
[1748613875442,0.3424892,105680.0,105670.0,0.1055948]
[1748613875659,0.361413,105680.0,105670.0,0.1055948]
[1748613875883,0.3424892,105680.0,105670.0,0.1055948]
[1748613876845,0.3424892,105680.0,105670.0,0.64600627]
[1748613876846,0.0024892,105680.0,105670.0,0.64600627]
[1748613877078,0.0024892,105680.0,105670.0,0.64364063]
[1748613877314,0.0024892,105680.0,105670.0,0.1055948]
[1748613877544,0.0024892,105680.0,105670.0,0.2139148]
[1748613878678,0.02141291,105680.0,105670.0,0.2139148]
[1748613878907,0.36141327,105680.0,105670.0,0.2139148]
[1748613879148,0.3424892,105680.0,105670.0,0.1055948]
[1748613879415,0.35195101,105680.0,105670.0,0.1055948]
[1748613879657,0.3424892,105680.0,105670.0,0.1055948]
[1748613879891,0.0024892,105680.0,105670.0,0.10796044]
[1748613881475,0.0024892,105680.0,105670.0,0.1055948]
[1748613881757,0.0024892,105680.0,105670.0,0.10796037]
[1748613882203,0.0024892,105680.0,105670.0,0.1055948]
[1748613883123,0.0024892,105680.0,105670.0,0.4285948]
[1748613883351,0.0024892,105680.0,105670.0,0.1055948]
[1748613884302,0.01195092,105680.0,105670.0,0.1055948]
[1748613884531,0.05573768,105680.0,105670.0,0.09105395]
[1748613884757,0.02735092,105680.0,105670.0,0.09105395]
[1748613884977,0.02735101,105680.0,105670.0,0.09105395]
[1748613885425,0.02735092,105680.0,105670.0,0.09105395]
[1748613886324,0.03681282,105680.0,105670.0,0.09105395]
[1748613886549,0.24498824,105680.0,105660.0,0.10828]
[1748613886785,0.24498824,105680.0,105660.0,0.19933395]
[1748613886786,0.06127516,105680.0,105660.0,0.19933395]
[1748613887044,0.05181291,105680.0,105660.0,0.19933395]
[1748613887286,0.0024892,105680.0,105670.0,0.09105395]
[1748613887502,0.0014892,105680.0,105670.0,0.09105395]
[1748613887726,0.0004892,105680.0,105670.0,0.09105395]
[1748613889161,0.0004892,105680.0,105670.0,0.1055948]
[1748613889402,0.0004892,105680.0,105670.0,0.64364063]
[1748613889627,0.0004892,105680.0,105670.0,0.1055948]
[1748613889848,0.0014892,105680.0,105670.0,0.10796037]
[1748613890526,0.0024892,105680.0,105670.0,0.10796037]
[1748613890748,0.01131384,105680.0,105670.0,0.2137948]
[1748613891219,0.01131421,105680.0,105670.0,0.2137948]
[1748613891437,0.01131428,105680.0,105670.0,0.2137948]
[1748613891653,0.01131433,105680.0,105670.0,0.19925395]
[1748613891874,0.0184892,105680.0,105670.0,0.19925395]
[1748613892121,0.02731439,105680.0,105670.0,0.19925395]
[1748613892356,0.02795092,105680.0,105670.0,0.19925395]
[1748613892569,0.03677701,105680.0,105670.0,0.09105395]
[1748613892794,0.06173936,105680.0,105670.0,0.09105395]
[1748613893013,0.07120772,105680.0,105670.0,0.09105395]
[1748613893228,0.0522833,105680.0,105670.0,0.09105395]
[1748613893467,0.26045846,105680.0,105670.0,0.09105395]
[1748613893695,0.01892756,105660.0,105640.0,0.10816]
[1748613893927,0.01892756,105660.0,105640.0,0.09105395]
[1748613893928,0.20823409,105650.0,105640.0,0.09105395]
[1748613894189,0.22403409,105650.0,105640.0,0.09105395]
[1748613894425,0.03472916,105650.0,105640.0,0.09105395]
[1748613894656,0.24328605,105640.0,105610.0,0.03475675]
[1748613894910,0.05033087,105640.0,105620.0,0.19925395]
[1748613895167,0.0597977,105640.0,105620.0,0.19925395]
[1748613895379,0.05033159,105640.0,105620.0,0.19925395]
[1748613895605,0.00946638,105630.0,105620.0,0.19925395]
[1748613895882,0.05033159,105640.0,105620.0,0.19925395]
[1748613896106,0.05033096,105640.0,105620.0,0.19934664]
[1748613896327,0.01893096,105640.0,105620.0,0.19934664]
[1748613896577,0.22383427,105650.0,105620.0,0.19934664]
[1748613896793,0.02839716,105640.0,105620.0,0.20956308]
[1748613897020,0.00946548,105640.0,105620.0,0.20956308]
[1748613897251,0.02839707,105640.0,105620.0,0.20034664]
[1748613897480,0.20827272,105630.0,105620.0,0.09214664]
[1748613897717,0.24017351,105630.0,105620.0,0.00209269]
[1748613897936,0.24017351,105630.0,105620.0,0.00109269]
[1748613898372,0.24017351,105630.0,105620.0,9.269e-05]
[1748613899288,0.58017351,105630.0,105620.0,9.269e-05]
[1748613899497,0.58017351,105630.0,105620.0,0.00109269]
[1748613899731,0.3729,105630.0,105620.0,9.269e-05]
[1748613899952,0.3729,105630.0,105620.0,0.09114664]
[1748613899953,0.001,105630.0,105620.0,0.09114664]
[1748613900416,0.04379698,105640.0,105620.0,0.09114664]
[1748613900885,0.005,105630.0,105620.0,0.09114664]
[1748613901401,0.005,105630.0,105620.0,0.64373332]
[1748613901650,0.002,105630.0,105620.0,0.64373332]
[1748613901881,0.002,105630.0,105620.0,0.10568749]
[1748613902585,0.01893078,105640.0,105620.0,0.10568749]
[1748613902800,0.0094653,105640.0,105630.0,0.09105395]
[1748613903025,0.03039626,105640.0,105630.0,0.09105395]
[1748613903271,0.03786201,105640.0,105630.0,0.09105395]
[1748613903539,0.0124653,105640.0,105630.0,0.09105395]
[1748613903756,0.003,105640.0,105630.0,0.09105395]
[1748613903982,0.05979365,105650.0,105630.0,0.09105395]
[1748613904442,0.007,105640.0,105630.0,0.64364063]
[1748613904689,0.007,105640.0,105630.0,1.2330807]
[1748613904910,0.007,105640.0,105630.0,2.4852677]
[1748613905362,0.007,105640.0,105630.0,2.3822145]
[1748613905589,0.004,105640.0,105630.0,1.87014487]
[1748613905850,0.004,105640.0,105630.0,1.87961125]
[1748613906355,0.004,105640.0,105630.0,1.87961142]
[1748613906590,0.01892549,105670.0,105650.0,0.01454085]
[1748613906814,0.01892549,105670.0,105660.0,0.09105395]
[1748613906815,0.07575399,105670.0,105660.0,0.09105395]
[1748613907326,0.14480955,105690.0,105660.0,0.09105395]
[1748613907544,0.01892389,105680.0,105660.0,0.09341991]
[1748613907788,0.02838605,105680.0,105660.0,0.09105395]
[1748613908010,0.34995101,105680.0,105660.0,0.09105395]
[1748613908237,0.34995101,105680.0,105660.0,0.09341977]
[1748613908693,0.34995092,105680.0,105660.0,0.09341977]
[1748613908910,0.004,105670.0,105660.0,0.09341977]
[1748613909607,0.007,105670.0,105660.0,0.09105395]
[1748613909866,0.004,105670.0,105660.0,0.09105395]
[1748613910103,0.3404892,105680.0,105660.0,0.10796055]
[1748613910349,0.3434892,105680.0,105660.0,0.10796055]
[1748613910585,0.35395101,105680.0,105660.0,0.10796055]
[1748613910810,0.003,105670.0,105660.0,0.1055948]
[1748613911036,0.003,105670.0,105660.0,0.11506623]
[1748613911273,0.004,105670.0,105660.0,0.11743199]
[1748613911719,0.359413,105680.0,105660.0,0.11506623]
[1748613912151,0.003,105670.0,105660.0,0.11506623]
[1748613912620,0.02192567,105670.0,105660.0,0.09105395]
[1748613912855,0.02192558,105670.0,105660.0,0.09105395]
[1748613913295,0.0124627,105670.0,105660.0,0.09105395]
[1748613913526,0.003,105670.0,105660.0,0.09105395]
[1748613913966,0.30995101,105680.0,105660.0,0.09105395]
[1748613914191,0.002,105670.0,105660.0,0.09105395]
[1748613914418,0.002,105670.0,105660.0,0.1055948]
[1748613915124,0.002,105670.0,105660.0,0.10796052]
[1748613915351,0.005,105670.0,105660.0,0.12406052]
[1748613915577,0.005,105670.0,105660.0,0.66210635]
[1748613915793,0.005,105670.0,105660.0,0.1370948]
[1748613916015,0.005,105670.0,105660.0,0.13946053]
[1748613916241,0.005,105670.0,105660.0,0.10796053]
[1748613916751,0.005,105670.0,105660.0,0.68390477]
[1748613916968,0.005,105670.0,105660.0,0.67444063]
[1748613917911,0.005,105670.0,105660.0,0.1363948]
[1748613918617,0.005,105670.0,105660.0,0.4591548]
[1748613920018,0.005,105670.0,105660.0,0.99720063]
[1748613920471,0.005,105670.0,105660.0,1.18648702]
[1748613920699,0.005,105670.0,105660.0,1.34666494]
[1748613920911,0.005,105670.0,105660.0,1.33720063]
[1748613921598,0.005,105670.0,105660.0,1.34666494]
[1748613921815,0.005,105670.0,105660.0,1.33720063]
[1748613922772,0.005,105670.0,105660.0,2.68675824]
[1748613923017,0.005,105670.0,105660.0,1.55487889]
[1748613923229,0.005,105670.0,105660.0,5.79835016]
[1748613923457,0.002,105670.0,105660.0,4.99352716]
[1748613923703,0.01,105690.0,105680.0,0.0155]
[1748613923927,0.01,105690.0,105680.0,0.75263978]
[1748613924174,0.0101467,105690.0,105680.0,0.75263978]
[1748613924396,0.0101467,105690.0,105680.0,0.19909395]
[1748613924620,0.0101467,105690.0,105680.0,0.09105395]
[1748613924857,0.29405616,105690.0,105680.0,0.09105395]
[1748613925097,0.29405616,105690.0,105670.0,0.40864]
[1748613925098,0.31679489,105690.0,105670.0,0.40864]
[1748613925326,0.01892353,105680.0,105670.0,0.49969395]
[1748613925554,0.00946172,105680.0,105670.0,0.49969395]
[1748613925780,0.24833715,105680.0,105670.0,0.49969395]
[1748613926003,0.05908641,105680.0,105670.0,0.49969395]
[1748613926224,0.04962416,105680.0,105670.0,0.49969395]
[1748613926503,0.06854902,105680.0,105670.0,0.50069395]
[1748613926721,0.24833706,105680.0,105670.0,0.002]
[1748613926960,0.2294129,105680.0,105670.0,0.001]
[1748613927197,0.2294129,105680.0,105650.0,0.43068]
[1748613927198,0.0189254,105670.0,105650.0,0.43068]
[1748613927428,0.06128685,105680.0,105660.0,0.09105395]
[1748613927660,0.00946261,105670.0,105660.0,0.09105395]
[1748613927885,0.05082442,105680.0,105660.0,0.09105395]
[1748613928106,0.0094627,105670.0,105660.0,0.09105395]
[1748613928385,0.06328694,105680.0,105660.0,0.09105395]
[1748613928926,0.05382442,105680.0,105660.0,0.09105395]
[1748613929187,0.003,105680.0,105670.0,0.55495218]
[1748613929418,0.0101467,105690.0,105680.0,0.01454085]
[1748613929638,0.0101467,105690.0,105680.0,0.64364063]
[1748613930591,0.0121467,105690.0,105680.0,0.67584063]
[1748613931523,0.0121467,105690.0,105680.0,0.6950564]
[1748613931773,0.0121467,105690.0,105680.0,2.07208646]
[1748613932207,0.0121467,105690.0,105680.0,2.06262456]
[1748613932668,0.0101467,105690.0,105680.0,2.06262456]
[1748613932903,0.0111467,105690.0,105680.0,2.06262456]
[1748613933553,0.0111467,105690.0,105680.0,2.07765791]
[1748613933767,0.0111467,105690.0,105680.0,2.0871199]
[1748613933986,0.0111467,105690.0,105680.0,1.86948267]
[1748613934205,0.0111467,105690.0,105680.0,1.1658224]
[1748613934427,0.0111467,105690.0,105680.0,1.0350564]
[1748613935088,0.06963452,105720.0,105680.0,1.0350564]
[1748613935332,0.25881441,105720.0,105700.0,0.01454085]
[1748613935549,0.00945823,105720.0,105710.0,0.09105395]
[1748613935766,0.11597972,105730.0,105710.0,0.09105395]
[1748613935985,0.33366088,105730.0,105710.0,0.09105395]
[1748613936206,0.02937531,105720.0,105710.0,0.09105395]
[1748613936426,0.01045823,105720.0,105710.0,0.09105395]
[1748613936642,0.02191655,105720.0,105710.0,0.09105395]
[1748613936922,0.01891655,105720.0,105710.0,0.09105395]
[1748613937163,0.00945814,105720.0,105710.0,0.09205395]
[1748613937625,0.00945814,105720.0,105710.0,0.09105395]
[1748613937626,0.01445814,105720.0,105710.0,0.09105395]
[1748613937856,0.01,105720.0,105710.0,0.09205395]
[1748613938087,0.01945823,105720.0,105710.0,0.09205395]
[1748613938551,0.01,105720.0,105710.0,0.09205395]
[1748613938776,0.01945823,105720.0,105710.0,0.09205395]
[1748613939021,0.01,105720.0,105710.0,0.09205395]
[1748613940219,0.01945814,105720.0,105710.0,0.09205395]
[1748613940493,0.03837487,105720.0,105710.0,0.09205395]
[1748613940725,0.0407,105720.0,105710.0,0.09205395]
[1748613940958,0.03455814,105720.0,105710.0,0.09205395]
[1748613941214,0.01,105720.0,105710.0,0.09205395]
[1748613941898,0.01945823,105720.0,105710.0,0.09205395]
[1748613942134,0.01945823,105720.0,105710.0,0.001]
[1748613942135,0.2184541,105720.0,105710.0,0.001]
[1748613942368,0.22791286,105720.0,105710.0,0.001]
[1748613942808,0.23673312,105720.0,105710.0,0.001]
[1748613943269,0.23673735,105720.0,105710.0,0.001]
[1748613943713,0.23673747,105720.0,105710.0,0.001]
[1748613944170,0.22791286,105720.0,105710.0,0.001]
[1748613944408,0.23673877,105720.0,105710.0,0.001]
[1748613944632,0.23673884,105720.0,105710.0,0.001]
[1748613944855,0.23673873,105720.0,105710.0,0.001]
[1748613945706,0.23673959,105720.0,105710.0,0.001]
[1748613945975,0.22791286,105720.0,105710.0,0.001]
[1748613946467,0.23673976,105720.0,105710.0,0.001]
[1748613946919,0.22791286,105720.0,105710.0,0.001]
[1748613947142,0.2367406,105720.0,105710.0,0.001]
[1748613947603,0.57674008,105720.0,105710.0,0.001]
[1748613947823,0.57674004,105720.0,105710.0,0.001]
[1748613948039,0.576741,105720.0,105710.0,0.001]
[1748613948276,0.57674091,105720.0,105710.0,0.001]
[1748613948502,0.57674099,105720.0,105710.0,0.001]
[1748613948716,0.57674108,105720.0,105710.0,0.001]
[1748613949156,0.57674179,105720.0,105710.0,0.001]
[1748613949427,0.56791286,105720.0,105710.0,0.001]
[1748613949653,0.57674179,105720.0,105710.0,0.001]